fUSD/lending_fUSD_20241206
["ID","MTS","AMOUNT","RATE_DAILY","PERIOD"]
[344421645,1733443831882,-250.0,6.058e-05,2]
[344421646,1733443831893,-720.925904,6.058e-05,2]
[344421647,1733443831905,-1279.074096,6.058e-05,2]
[344421648,1733443831915,-250.0,6.089e-05,2]
[344421649,1733443831924,-200.0,6.112e-05,2]
[344421650,1733443831934,-533.95216888,6.14e-05,2]
[344421651,1733443832029,-966.04783112,6.14e-05,2]
[344421652,1733443832038,-23900.0,6.185e-05,2]
[344421653,1733443832048,-166.66,6.294e-05,2]
[344421654,1733443832057,-654.4,6.314e-05,2]
[344421655,1733443832067,-500.0,6.685e-05,2]
[344421656,1733443832076,-2242.04728375,6.9e-05,2]
[344421657,1733443832085,-1516.88,6.9e-05,2]
[344421658,1733443832095,-299.99,6.9e-05,2]
[344421659,1733443832104,-150.99,6.9e-05,2]
[344421660,1733443832113,-1000.0,6.964e-05,2]
[344421661,1733443832125,-150.0,6.964e-05,2]
[344421662,1733443832135,-1000.0,6.965e-05,2]
[344421663,1733443832144,-1000.0,6.965e-05,2]
[344421664,1733443832153,-1000.0,6.965e-05,2]
[344421665,1733443832163,-1000.0,6.965e-05,2]
[344421666,1733443832173,-1000.0,6.965e-05,2]
[344421667,1733443832183,-1000.0,6.965e-05,2]
[344421668,1733443832192,-1000.0,6.965e-05,2]
[344421669,1733443832201,-1000.0,6.965e-05,2]
[344421670,1733443832211,-1000.0,6.965e-05,2]
[344421671,1733443832221,-1000.0,6.965e-05,2]
[344421672,1733443832234,-1000.0,6.965e-05,2]
[344421673,1733443832243,-1000.0,6.965e-05,2]
[344421674,1733443832252,-1000.0,6.965e-05,2]
[344421676,1733443832261,-1000.0,6.965e-05,2]
[344421677,1733443832272,-1000.0,6.965e-05,2]
[344421679,1733443832282,-1000.0,6.965e-05,2]
[344421681,1733443832294,-957.8089,6.965e-05,2]
[344421683,1733443832306,-500.0,6.973e-05,2]
[344421685,1733443832315,-500.0,6.973e-05,2]
[344421687,1733443832325,-161.4017013,6.973e-05,2]
[344421689,1733443832335,-6671.833,6.989e-05,2]
[344421691,1733443832346,-336.717,6.989e-05,2]
[344421693,1733443832355,-91922.52868641,6.99e-05,2]
[344421695,1733443832365,-360.0,6.998e-05,2]
[344421697,1733443832376,-360.0,6.998e-05,2]
[344421699,1733443832387,-360.0,6.998e-05,2]
[344421701,1733443832396,-360.0,6.998e-05,2]
[344421703,1733443832405,-360.0,6.998e-05,3]
[344421705,1733443832415,-360.0,6.998e-05,3]
[344421707,1733443832425,-360.0,6.998e-05,3]
[344421709,1733443832434,-360.0,6.998e-05,3]
[344421711,1733443832443,-360.0,6.998e-05,3]
[344421713,1733443832453,-325.30303172,6.999e-05,2]
[344421715,1733443832462,-3740.30934284,6.999e-05,2]
[344421717,1733443832471,-19782.48846401,6.999e-05,2]
[344421719,1733443832486,-107022.3296801,6.999e-05,2]
[344421722,1733443832507,-1891.30000002,6.999e-05,2]
[344421725,1733443832520,-1454.68282,6.999e-05,2]
[344421729,1733443832549,-33418.14044317,6.999e-05,2]
[344421784,1733443837890,-500.0,6.973e-05,2]
[344421786,1733443837901,-364.36836261,6.999e-05,2]
[344421787,1733443837912,-43056.4053197,6.999e-05,2]
[344421788,1733443837923,-43225.49682418,6.999e-05,2]
[344421789,1733443837965,-96883.3680904,6.999e-05,2]
[344421790,1733443838002,-3684.20756943,6.999e-05,2]
[344421855,1733443840102,-365135.67090001,6.999e-05,2]
[344421856,1733443840208,-78973.05884614,6.999e-05,2]
[344421857,1733443840220,-2185.0,6.999e-05,2]
[344421858,1733443840262,-1178.79999995,6.999e-05,2]
[344421859,1733443840274,-147895.34856253,6.999e-05,2]
[344421860,1733443840285,-1766.42579992,6.999e-05,2]
[344421885,1733443842874,-4113.68339798,6.999e-05,2]
[344421891,1733443842898,-2187.46690011,6.999e-05,2]
[344421893,1733443842910,-18848.0,6.999e-05,2]
[344421896,1733443842954,-48544.41824645,6.999e-05,2]
[344421897,1733443843007,-5726.40067682,6.999e-05,2]
[344421898,1733443843147,-175216.52899773,6.999e-05,2]
[344421899,1733443843159,-1323.0,6.999e-05,2]
[344421900,1733443843170,-26997.38350496,6.999e-05,2]
[344421901,1733443843229,-2840.17579411,6.999e-05,2]
[344421908,1733443845814,-56140.80978894,6.999e-05,2]
[344421909,1733443845826,-709.50000003,6.999e-05,2]
[344421910,1733443845909,-581.2024805,6.999e-05,2]
[344421911,1733443845922,-332202.57411743,6.999e-05,2]
[344421912,1733443845932,-216.86868781,6.999e-05,2]
[344421913,1733443845942,-882.0,7e-05,2]
[344421914,1733443845952,-343948.55719491,7e-05,2]
[344421915,1733443845967,-33385.68537463,7e-05,2]
[344421916,1733443846130,-1830.7112233,7e-05,2]
[344421961,1733444947138,-2000.0,6.041e-05,2]
[344421962,1733444947160,-730.0,6.089e-05,2]
[344421963,1733444947181,-25397.0,6.11e-05,2]
[344421964,1733444947203,-17822.53848642,6.116e-05,2]
[344421965,1733444954141,-6077.46151358,6.116e-05,2]
[344421966,1733444954164,-274.56,6.14e-05,2]
[344421967,1733444954184,-1500.0,6.195e-05,2]
[344421968,1733444954205,-250.0,6.269e-05,2]
[344421969,1733444954226,-250.0,6.269e-05,2]
[344421970,1733444954247,-41.27325572,6.275e-05,2]
[344421980,1733444966095,-1125.83678754,6.214e-05,2]
[344421981,1733444974092,-21909.87254542,6.214e-05,2]
[344421986,1733445032018,-864.29066704,6.214e-05,2]
[344421987,1733445032029,-200.0,6.214e-05,2]
[344421988,1733445032039,-1500.0,6.214e-05,2]
[344421989,1733445032048,-201.92,6.663e-05,2]
[344421990,1733445032058,-1000.0,6.899e-05,2]
[344421991,1733445032068,-300.0,6.899e-05,2]
[344421992,1733445032077,-681.66847172,6.9e-05,2]
[344421993,1733445034511,-250.0,6.9e-05,2]
[344421994,1733445034524,-645.45172828,6.9e-05,2]
[344421995,1733445034534,-10311.9488,6.9e-05,2]
[344421996,1733445034544,-2500.0,6.9e-05,2]
[344421997,1733445034553,-274.56,6.908e-05,2]
[344421998,1733445034563,-150.0,6.939e-05,2]
[344421999,1733445034572,-585.10387172,6.94e-05,2]
[344422000,1733445034583,-9906.17050621,6.94e-05,2]
[344422001,1733445034607,-7575.19780484,6.94e-05,2]
[344422002,1733445034618,-5420.89932319,6.94e-05,2]
[344422003,1733445034627,-797.0,6.959e-05,2]
[344422004,1733445034639,-454.0,6.959e-05,2]
[344422005,1733445034649,-500.0,6.973e-05,2]
[344422006,1733445034658,-500.0,6.973e-05,2]
[344422007,1733445034668,-500.0,6.973e-05,2]
[344422008,1733445034682,-360.0,6.998e-05,3]
[344422009,1733445034691,-360.0,6.998e-05,3]
[344422010,1733445034700,-360.0,6.998e-05,3]
[344422011,1733445034710,-360.0,6.998e-05,3]
[344422012,1733445034719,-360.0,6.998e-05,3]
[344422013,1733445034729,-360.0,6.998e-05,2]
[344422014,1733445034738,-360.0,6.998e-05,2]
[344422015,1733445034747,-360.0,6.998e-05,2]
[344422016,1733445034758,-360.0,6.998e-05,2]
[344422017,1733445034768,-360.0,6.998e-05,2]
[344422018,1733445034777,-400.0,6.998e-05,2]
[344422019,1733445034787,-150.01,6.999e-05,2]
[344422020,1733445034796,-5718.259,6.999e-05,2]
[344422021,1733445034806,-29464.32145206,6.999e-05,2]
[344422022,1733445034815,-697.0,7e-05,2]
[344422023,1733445034824,-17573.50091412,7e-05,2]
[344422024,1733445034836,-173841.62032157,7e-05,2]
[344422025,1733445034872,-15652.21838866,7e-05,2]
[344422027,1733445034886,-737.69961033,7e-05,2]
[344422029,1733445034897,-1789.89232795,7e-05,2]
[344422032,1733445034916,-187308.09935901,7e-05,2]
[344422034,1733445034947,-55191.73991268,7e-05,2]
[344422035,1733445034958,-454.92529219,7e-05,2]
[344422038,1733445037999,-24909.17212211,7e-05,2]
[344422039,1733445038067,-2097.97477028,7e-05,2]
[344422040,1733445038079,-6596.0,7e-05,2]
[344422041,1733445038187,-206564.27052304,7e-05,2]
[344422042,1733445038198,-1194.99273821,7e-05,2]
[344422043,1733445038209,-2270.61672282,7e-05,2]
[344422044,1733445038220,-419.275395,7e-05,2]
[344422045,1733445038294,-18578.1002125,7e-05,2]
[344422053,1733445040017,-882.9049,6.9e-05,2]
[344422054,1733445040027,-976.71286,7e-05,2]
[344422055,1733445040181,-3427.66369885,7e-05,2]
[344422056,1733445040245,-305.0000025,7e-05,2]
[344422057,1733445040273,-378.52272928,7e-05,2]
[344422058,1733445040285,-340.2247088,7e-05,2]
[344422059,1733445040296,-379.30707445,7e-05,2]
[344422060,1733445040312,-9876.90763634,7e-05,2]
[344422061,1733445040335,-1349.15905,7e-05,2]
[344422126,1733445043102,-283.72737562,6.999e-05,2]
[344422128,1733445043111,-158.52883186,7e-05,2]
[344422129,1733445043123,-2613.24932791,7e-05,2]
[344422130,1733445043134,-1711.87058023,7e-05,2]
[344422131,1733445043149,-48471.49531982,7e-05,2]
[344422132,1733445043170,-3004.34380512,7e-05,2]
[344422133,1733445043279,-263684.1826315,7e-05,2]
[344422134,1733445043291,-2442.88333547,7e-05,2]
[344422135,1733445043302,-10359.08845029,7e-05,2]
[344422136,1733445043314,-1395.80498453,7e-05,2]
[344422137,1733445043326,-4844.88,7e-05,2]
[344422138,1733445043443,-4262.11462097,7e-05,2]
[344422139,1733445043456,-1224.64857871,7e-05,2]
[344422140,1733445043468,-968.01,7e-05,2]
[344422218,1733445046623,-258.36317581,7e-05,2]
[344422219,1733445046644,-3250.00000201,7e-05,2]
[344422220,1733445046655,-2807.64371838,7e-05,2]
[344422221,1733445046678,-166141.10995354,7e-05,2]
[344422222,1733445046716,-251449.70016682,7e-05,2]
[344422223,1733445046794,-13507.911744,7e-05,2]
[344422224,1733445046806,-5677.69828839,7e-05,2]
[344422229,1733446036109,-154.16823646,5.81e-05,2]
[344422230,1733446045131,-95.83176354,5.81e-05,2]
[344422231,1733446045156,-161.54,5.885e-05,2]
[344422232,1733446045178,-250.0,5.93e-05,2]
[344422233,1733446045199,-336.64986179,5.985e-05,2]
[344422234,1733446048098,-402.43305892,5.985e-05,2]
[344422239,1733446145083,-1213.11707929,5.985e-05,2]
[344422240,1733446145109,-500.0,6e-05,2]
[344422241,1733446145131,-1500.0,6.008e-05,2]
[344422242,1733446145153,-14053.47254071,6.024e-05,2]
[344422243,1733446152200,-9846.52745929,6.024e-05,2]
[344422244,1733446152235,-200.0,6.059e-05,2]
[344422245,1733446152269,-150.0,6.082e-05,2]
[344422246,1733446152304,-1100.0,6.1e-05,2]
[344422247,1733446152334,-794.86272911,6.2e-05,2]
[344422248,1733446152377,-905.13727089,6.2e-05,2]
[344422249,1733446152409,-166.67,6.249e-05,2]
[344422250,1733446152450,-2300.0,6.3e-05,2]
[344422251,1733446172823,200.0,6.186e-05,2]
[344422259,1733446232272,-2900.0,6.4e-05,2]
[344422260,1733446232282,-150.99,6.446e-05,2]
[344422261,1733446232292,-8337.3,6.446e-05,2]
[344422262,1733446232302,-673.72,6.499e-05,2]
[344422263,1733446232312,-500.0,6.5e-05,2]
[344422264,1733446232322,-500.0,6.6e-05,2]
[344422265,1733446232331,-161.54,6.62e-05,2]
[344422274,1733446232699,-150.0,6.624e-05,2]
[344422276,1733446232715,-500.0,6.7e-05,2]
[344422278,1733446232725,-500.0,6.712e-05,2]
[344422280,1733446232734,-6688.91950416,6.8e-05,2]
[344422282,1733446232744,-1000.0,6.8e-05,2]
[344422284,1733446232753,-500.0,6.8e-05,2]
[344422286,1733446232763,-262.0144,6.9e-05,2]
[344422288,1733446232773,-3406.9345956,6.9e-05,2]
[344422290,1733446232782,-2500.0,6.9e-05,2]
[344422292,1733446232791,-1049.0,6.9e-05,2]
[344422294,1733446232800,-1100.0,6.9e-05,2]
[344422296,1733446232810,-7284.11798024,6.93e-05,2]
[344422298,1733446232821,-15072.89482121,6.93e-05,2]
[344422300,1733446232831,-193.776023,6.973e-05,2]
[344422302,1733446232841,-227.96399664,6.973e-05,2]
[344422304,1733446232851,-500.0,6.973e-05,2]
[344422306,1733446232860,-4933.68,6.998e-05,2]
[344422308,1733446232869,-382.93768284,6.999e-05,2]
[344422309,1733446232879,-305.399,6.999e-05,2]
[344422311,1733446232888,-744.0,7e-05,2]
[344422314,1733446232898,-10245.92770471,7e-05,2]
[344422316,1733446232913,-3937.71518677,7e-05,2]
[344422318,1733446232942,-21719.94681896,7e-05,2]
[344422319,1733446232962,-28418.28226546,7e-05,2]
[344422320,1733446232981,-54735.51363,7e-05,2]
[344422321,1733446232993,-113429.52,7e-05,2]
[344422322,1733446238213,-564.0,7e-05,2]
[344422323,1733446238223,-1886.0905606,7e-05,2]
[344422324,1733446238565,-93.7801804,7e-05,2]
[344422325,1733446238598,-5448.20054393,7e-05,2]
[344422326,1733446238609,-914.94104856,7e-05,2]
[344422341,1733446240226,-487166.93620296,7e-05,2]
[344422342,1733446240345,-329.29956766,7e-05,2]
[344422343,1733446240357,-573.47936204,7e-05,2]
[344422344,1733446240377,-290.0,7e-05,2]
[344422345,1733446240390,-6228.46751351,7e-05,2]
[344422346,1733446240428,-48781.74212517,7e-05,2]
[344422379,1733446243242,-509.0,7e-05,2]
[344422381,1733446243251,-1618.17245314,7e-05,2]
[344422383,1733446243306,-21558.75888649,7e-05,2]
[344422384,1733446243426,-253.7413963,7e-05,2]
[344422385,1733446243542,-11045.82582165,7e-05,2]
[344422386,1733446243554,-2500.55070357,7e-05,2]
[344422387,1733446243565,-1385.44536,7e-05,2]
[344422420,1733446246947,-383.5086327,7e-05,2]
[344422421,1733446246959,-588800.72585995,7e-05,2]
[344422422,1733446246972,-1076851.46469486,7e-05,2]
[344422423,1733446246988,-55432.69727957,7e-05,2]
[344422424,1733446247010,-1051.44504527,7e-05,2]
[344422425,1733446247022,-869.13845473,7e-05,2]
[344422426,1733446247033,-16251.1548255,7e-05,2]
[344422427,1733446247048,-155909.77565374,7e-05,2]
[344422428,1733446247060,-77675.9971853,7e-05,2]
[344422429,1733446247091,-13535.05558,7e-05,2]
[344422430,1733446247102,-3345.0326253,7e-05,2]
[344422435,1733447148166,-222.0973625,6.112e-05,2]
[344422436,1733447233096,-3083.71391515,6.112e-05,2]
[344422437,1733447250088,-3043.39369692,6.112e-05,2]
[344422439,1733447346111,-970.40250181,6.112e-05,2]
[344422440,1733447347098,-3822.063406,6.112e-05,2]
[344422441,1733447347134,-12758.32911762,6.112e-05,2]
[344422442,1733447347157,-200.0,6.135e-05,2]
[344422443,1733447347178,-250.0,6.18e-05,2]
[344422444,1733447365524,635.9,6.184e-05,2]
[344422450,1733447431805,-364.1,6.326e-05,2]
[344422451,1733447431815,-250.0,6.331e-05,2]
[344422452,1733447431824,-500.0,6.603e-05,2]
[344422453,1733447431833,-1674.0,6.724e-05,2]
[344422454,1733447431843,-401.2398345,6.86e-05,2]
[344422455,1733447431852,-563.38443468,6.86e-05,2]
[344422456,1733447431861,-150.0,6.899e-05,2]
[344422457,1733447431870,-11235.67358447,6.9e-05,2]
[344422458,1733447431880,-500.0,6.9e-05,2]
[344422459,1733447431890,-2500.0,6.9e-05,2]
[344422460,1733447431899,-1544.34,6.902e-05,2]
[344422461,1733447431908,-563.38443466,6.93e-05,2]
[344422462,1733447431918,-18168.07399626,6.93e-05,2]
[344422463,1733447431929,-881.35654565,6.93e-05,2]
[344422465,1733447431941,-1598.77174822,6.93e-05,2]
[344422467,1733447431950,-277.35,6.93e-05,2]
[344422469,1733447431959,-500.0,6.932e-05,2]
[344422471,1733447431969,-500.0,6.932e-05,2]
[344422473,1733447431978,-2500.0,6.933e-05,2]
[344422475,1733447431987,-2500.0,6.933e-05,2]
[344422477,1733447431996,-635.9,6.957e-05,2]
[344422478,1733447432005,-500.0,6.973e-05,2]
[344422480,1733447432015,-3946.944,6.973e-05,2]
[344422482,1733447432023,-554.95,6.98e-05,2]
[344422484,1733447432033,-870.61,6.98e-05,2]
[344422486,1733447432042,-244.319,6.989e-05,2]
[344422488,1733447432052,-47824.03852698,6.99e-05,2]
[344422492,1733447432066,-254.13782901,6.99e-05,2]
[344422775,1733447438133,-7467.5726765,6.99e-05,2]
[344422776,1733447438170,-723.9091,6.99e-05,2]
[344422777,1733447438185,-26154.0007,6.99e-05,2]
[344422778,1733447438213,-495.32752945,6.99e-05,2]
[344422779,1733447438224,-42259.87706103,6.99e-05,2]
[344422780,1733447438299,-24.67748481,6.99e-05,2]
[344422781,1733447438311,-16533.93042552,6.99e-05,2]
[344422782,1733447438321,-382.93768284,6.999e-05,2]
[344422783,1733447438330,-4638.13093544,6.999e-05,2]
[344422784,1733447438340,-563.38443466,6.999e-05,2]
[344422785,1733447438350,-659.0,7e-05,2]
[344422786,1733447438360,-20000.0,7e-05,2]
[344422787,1733447438370,-111033171.82473055,7e-05,2]
[344422793,1733447439413,-29232.33925808,7e-05,2]
[344422794,1733447439454,-7722.33205718,7e-05,2]
[344422795,1733447439465,-2294.6,7e-05,2]
[344422796,1733447439476,-1711.61544813,7e-05,2]
[344422797,1733447439488,-34990.16113647,7e-05,2]
[344422798,1733447439499,-35997.6767145,7e-05,2]
[344422799,1733447439659,-300.0,7e-05,2]
[344422802,1733447439753,-338.15485521,7e-05,2]
[344422804,1733447439765,-2298.88999386,7e-05,2]
[344422806,1733447439776,-2924.40781894,7e-05,2]
[344422813,1733447442414,-150.0,6.666e-05,2]
[344422814,1733447442424,-457.88408192,7e-05,2]
[344422815,1733447442481,-54872.32412211,7e-05,2]
[344422816,1733447442493,-1566.82571517,7e-05,2]
[344422817,1733447442504,-10359.08845029,7e-05,2]
[344422818,1733447442515,-1374.6282513,7e-05,2]
[344422819,1733447442527,-194487.98045532,7e-05,2]
[344422820,1733447442555,-22197.01805406,7e-05,2]
[344422821,1733447442667,-3411.84964907,7e-05,2]
[344422827,1733447445372,-584.0,7e-05,2]
[344422828,1733447445381,-209817.89637633,7e-05,2]
[344422829,1733447445413,-342.78169856,7e-05,2]
[344422830,1733447445438,-951.0,7e-05,2]
[344422831,1733447445521,-7228.599998,7e-05,2]
[344422832,1733447445533,-1361.90000849,7e-05,2]
[344422833,1733447445657,-33798.6,7e-05,2]
[344422834,1733447445845,-17996.03718,7e-05,2]
[344422836,1733447445857,-20088.7100217,7e-05,2]
[344422838,1733447445869,-8118.0518,7e-05,2]
[344424195,1733448408252,-262.48844588,6e-05,2]
[344424196,1733448432108,-137.51155412,6e-05,2]
[344424197,1733448432131,-237.02559801,6.04e-05,2]
[344424200,1733448547105,-12.97440199,6.04e-05,2]
[344424201,1733448547126,-250.0,6.04e-05,2]
[344424202,1733448547147,-300.0,6.062e-05,2]
[344424203,1733448547168,-2676.13696921,6.062e-05,2]
[344424204,1733448547190,-21175.38275494,6.063e-05,2]
[344424205,1733448550404,-2724.61724506,6.063e-05,2]
[344424206,1733448550425,-200.0,6.09e-05,2]
[344424207,1733448550448,-86.40810087,6.094e-05,2]
[344424219,1733448632019,-240.77189913,6.094e-05,2]
[344424220,1733448632028,-308.56,6.194e-05,2]
[344424221,1733448632038,-230.74223551,6.288e-05,2]
[344424222,1733448632047,-936.77586536,6.459e-05,2]
[344424223,1733448632058,-1573.22413464,6.459e-05,2]
[344424224,1733448632068,-689.56769962,6.8e-05,2]
[344424225,1733448632078,-327.18,6.856e-05,2]
[344424226,1733448632088,-511.7840381,6.86e-05,2]
[344424227,1733448632098,-797.5138,6.9e-05,2]
[344424228,1733448632108,-438.9668,6.9e-05,2]
[344424229,1733448632117,-2500.0,6.9e-05,2]
[344424230,1733448632126,-986.3906951,6.9e-05,2]
[344424231,1733448632136,-986.39069511,6.9e-05,2]
[344424232,1733448632145,-6936.21877471,6.94e-05,2]
[344424233,1733448632154,-3364.231,6.965e-05,2]
[344424234,1733448632163,-308.56,6.969e-05,2]
[344424235,1733448632172,-150.0,6.972e-05,2]
[344424236,1733448632181,-500.0,6.973e-05,2]
[344424237,1733448632190,-354.17517417,6.973e-05,2]
[344424238,1733448632200,-500.0,6.973e-05,2]
[344424239,1733448632209,-500.0,6.973e-05,2]
[344424240,1733448632218,-159.424799,6.973e-05,2]
[344424241,1733448632228,-199.78430719,6.973e-05,2]
[344424242,1733448632237,-161.0164832,6.973e-05,2]
[344424243,1733448632247,-500.0,6.973e-05,2]
[344424244,1733448632256,-502.15104722,6.973e-05,2]
[344424245,1733448632265,-195.456,6.973e-05,2]
[344424246,1733448632275,-2686.0,6.986e-05,2]
[344424247,1733448632284,-536.0,6.986e-05,2]
[344424248,1733448632294,-660.64249,6.989e-05,2]
[344424249,1733448632303,-1521.0416906,6.989e-05,2]
[344424250,1733448632312,-19252.73033155,6.999e-05,2]
[344424251,1733448632321,-20993.34531697,6.999e-05,2]
[344424252,1733448632334,-19471.3019378,6.999e-05,2]
[344424258,1733448632456,-5919.7499955,6.999e-05,2]
[344424259,1733448632467,-24283.507229,6.999e-05,2]
[344424260,1733448632520,-17427.13916805,6.999e-05,2]
[344424265,1733448637983,-161.06813051,6.973e-05,2]
[344424266,1733448637992,-3198.79980508,6.999e-05,2]
[344424267,1733448638006,-12578.62761372,6.999e-05,2]
[344424268,1733448638060,-55384.3674063,6.999e-05,2]
[344424269,1733448638153,-1004.5516002,6.999e-05,2]
[344424270,1733448638165,-1500421.13828838,6.999e-05,2]
[344424272,1733448638175,-1150.24489865,6.999e-05,2]
[344424273,1733448638186,-183.4476259,6.999e-05,2]
[344424274,1733448638195,-514.34684944,6.999e-05,2]
[344424275,1733448638205,-500.0,6.999e-05,2]
[344424276,1733448638214,-500.0,6.999e-05,2]
[344424277,1733448638224,-500.0,6.999e-05,2]
[344424278,1733448638233,-500.0,6.999e-05,2]
[344424279,1733448638244,-382.27141654,6.999e-05,2]
[344424280,1733448638253,-773.84751855,6.999e-05,2]
[344424281,1733448638263,-324056.07615827,7e-05,2]
[344424282,1733448638272,-20000.0,7e-05,2]
[344424283,1733448638282,-19764668.30311853,7e-05,2]
[344424284,1733448638291,-4418.31,7e-05,2]
[344424285,1733448638300,-9000.0,7e-05,2]
[344424286,1733448638311,-22617715.10874226,7e-05,2]
[344424287,1733448638321,-4005.3117,7e-05,2]
[344424288,1733448638331,-491.72,7e-05,2]
[344424289,1733448638340,-503.64,7e-05,2]
[344424290,1733448638350,-1001.651,7e-05,2]
[344424292,1733448638359,-200.0,7e-05,2]
[344424293,1733448638369,-5605.54657991,7e-05,2]
[344424295,1733448638382,-66802324.31388657,7e-05,2]
[344424335,1733448639942,-2286659.24736891,7e-05,2]
[344424336,1733448639955,-1369.34180027,7e-05,2]
[344424337,1733448639967,-553.12399616,7e-05,2]
[344424338,1733448639978,-399.7100002,7e-05,2]
[344424339,1733448639989,-2418.38120317,7e-05,2]
[344424340,1733448640000,-3410.15698258,7e-05,2]
[344424341,1733448640011,-579.26239713,7e-05,2]
[344424361,1733448642903,-424.1737,6.9e-05,2]
[344424362,1733448642912,-280.30757262,7e-05,2]
[344424363,1733448643075,-22760.0,7e-05,2]
[344424364,1733448643087,-9999.9952,7e-05,2]
[344424365,1733448643255,-3904.53,7e-05,2]
[344424366,1733448643287,-29.16538283,7e-05,2]
[344424367,1733448643298,-51313.46671482,7e-05,2]
[344424368,1733448643309,-31307.72591893,7e-05,2]
[344424369,1733448643321,-6940.10729827,7e-05,2]
[344424379,1733448645881,-42680.11331404,7e-05,2]
[344424380,1733448645893,-487.04105,7e-05,2]
[344424381,1733448645904,-1054.72,7e-05,2]
[344424382,1733448645916,-2721.39998674,7e-05,2]
[344424383,1733448646070,-194805.59756202,7e-05,2]
[344424389,1733449631143,-200.0,6.056e-05,2]
[344424390,1733449631166,-250.0,6.088e-05,2]
[344424391,1733449631189,-583.95407351,6.215e-05,2]
[344424392,1733449643174,-34.59592649,6.215e-05,2]
[344424393,1733449643197,-167.25,6.289e-05,2]
[344424394,1733449643221,-264.41118112,6.291e-05,2]
[344424396,1733449748563,-250.0,6.105e-05,2]
[344424397,1733449748585,-23250.49977343,6.131e-05,2]
[344424398,1733449772100,-490.0,6.131e-05,2]
[344424405,1733449832154,-159.50022657,6.131e-05,2]
[344424406,1733449832164,-150.0,6.499e-05,2]
[344424407,1733449832177,-150.0,6.767e-05,2]
[344424408,1733449832188,-1039.59895271,6.8e-05,2]
[344424409,1733449832198,-689.56769962,6.8e-05,2]
[344424410,1733449832209,-188.0065175,6.83e-05,2]
[344424411,1733449832219,-439.8758,6.83e-05,2]
[344424412,1733449832229,-2230.59748137,6.83e-05,2]
[344424413,1733449832239,-512.2688118,6.86e-05,2]
[344424414,1733449832248,-188.0065175,6.865e-05,2]
[344424415,1733449832258,-150.0,6.899e-05,2]
[344424416,1733449832268,-300.0,6.899e-05,2]
[344424417,1733449832278,-168827.1792,6.9e-05,2]
[344424418,1733449832288,-2500.0,6.9e-05,2]
[344424419,1733449832298,-188.0065175,6.9e-05,2]
[344424420,1733449832307,-24925.6678957,6.93e-05,2]
[344424421,1733449832318,-500.0,6.932e-05,2]
[344424422,1733449832329,-156.75,6.963e-05,2]
[344424423,1733449832340,-2698.899,6.969e-05,2]
[344424424,1733449832349,-503.48677189,6.973e-05,2]
[344424425,1733449832358,-500.0,6.973e-05,2]
[344424426,1733449832369,-500.61559057,6.973e-05,2]
[344424427,1733449832379,-159.43552831,6.973e-05,2]
[344424428,1733449832388,-500.54972617,6.973e-05,2]
[344424429,1733449832398,-199.80784247,6.973e-05,2]
[344424430,1733449832408,-500.0,6.973e-05,2]
[344424431,1733449832418,-502.15104722,6.973e-05,2]
[344424432,1733449832430,-159.69116721,6.973e-05,2]
[344424433,1733449832439,-157.40557635,6.973e-05,2]
[344424434,1733449832449,-600.29998183,6.973e-05,2]
[344424435,1733449832459,-159.45955471,6.973e-05,2]
[344424436,1733449832468,-547.0,6.986e-05,2]
[344424437,1733449832478,-2787.0,6.986e-05,2]
[344424438,1733449832488,-2016.2296309,6.988e-05,2]
[344424439,1733449832498,-6161.7793132,6.988e-05,2]
[344424440,1733449832507,-221.8220816,6.988e-05,2]
[344424441,1733449832517,-618.55,6.992e-05,2]
[344424442,1733449832527,-360.0,6.998e-05,2]
[344424443,1733449832536,-360.0,6.998e-05,2]
[344424444,1733449832546,-360.0,6.998e-05,2]
[344424445,1733449832556,-360.0,6.998e-05,2]
[344424446,1733449832565,-360.0,6.998e-05,2]
[344424447,1733449832575,-360.0,6.998e-05,3]
[344424448,1733449832584,-360.0,6.998e-05,3]
[344424449,1733449832594,-360.0,6.998e-05,3]
[344424451,1733449832603,-360.0,6.998e-05,3]
[344424453,1733449832613,-360.0,6.998e-05,3]
[344424455,1733449832622,-2963.4793307,6.999e-05,2]
[344424457,1733449832632,-575.64203403,6.999e-05,2]
[344424459,1733449832642,-500.0,6.999e-05,2]
[344424461,1733449832652,-500.0,6.999e-05,2]
[344424463,1733449832661,-619.50212965,6.999e-05,2]
[344424465,1733449832670,-500.0,6.999e-05,2]